bitfinex-derivatives/quotes_ETHF0:USTF0_20250903
["timestamp","ask_amount","ask_price","bid_price","bid_amount"]
[1756941832793,0.80437246,4464.1,4464.0,0.8178]
[1756941838498,0.226,4464.1,4464.0,0.8178]
[1756941838797,0.57888737,4464.5,4464.0,0.8178]
[1756941838999,0.226,4464.4,4464.3,0.3848]
[1756941839197,0.80488737,4464.4,4464.3,0.694]
[1756941842999,0.57888737,4464.4,4464.3,0.694]
[1756941843298,3.2078,4465.2,4465.1,0.3848]
[1756941843598,3.4338,4465.2,4465.1,0.694]
[1756941845801,3.4338,4465.2,4464.6,0.4983]
[1756941846004,0.97578137,4465.1,4464.7,0.4983]
[1756941846298,0.97578137,4465.1,4465.0,0.1228]
[1756941846496,0.97578137,4465.1,4465.0,0.432]
[1756941847994,0.97578137,4465.1,4464.6,0.3092]
[1756941848202,4.18358137,4464.7,4464.6,0.3092]
[1756941848398,4.40958137,4464.7,4464.6,0.3092]
[1756941848895,4.40958137,4464.7,4464.5,0.432]
[1756941849403,4.40958137,4464.7,4464.5,0.3092]
[1756941850005,4.40958137,4464.7,4464.1,0.4983]
[1756941850303,0.97578137,4464.3,4464.2,0.4983]
[1756941850504,1.20178137,4464.3,4464.2,0.4983]
[1756941851708,1.20178137,4464.3,4464.2,0.694]
[1756941852796,0.226,4464.3,4464.2,0.694]
[1756941852995,4.18358137,4464.7,4464.2,0.3848]
[1756941853200,0.97578137,4464.7,4464.6,0.6786]
[1756941853403,1.20178137,4464.7,4464.6,0.6786]
[1756941854104,1.20178137,4464.7,4464.6,0.4854]
[1756941854296,1.20178137,4464.7,4464.6,0.2915]
[1756941855101,4.40958137,4464.7,4464.6,0.2915]
[1756941855303,4.98593243,4464.7,4464.6,0.2915]
[1756941855910,4.98593243,4464.7,4464.6,0.4854]
[1756941856104,4.01015106,4464.7,4464.6,0.6786]
[1756941856303,0.80235106,4464.7,4464.6,0.6786]
[1756941868621,0.80235106,4464.7,4464.6,0.4854]
[1756941869117,0.80235106,4464.7,4464.6,0.2915]
[1756941869319,0.80235106,4464.7,4464.4,0.2915]
[1756941869526,1.78427197,4464.6,4464.1,0.2915]
[1756941869717,1.78427197,4464.6,4464.3,0.6786]
[1756941869718,0.57635106,4464.5,4464.3,0.6786]
[1756941869921,1.20792091,4464.6,4464.5,0.8005]
[1756941870221,0.80197807,4464.6,4464.5,0.8005]
[1756941872620,1.77775944,4464.6,4464.5,0.6073]
[1756941872929,1.77775944,4464.6,4464.5,0.4134]
[1756941873728,1.77775944,4464.6,4464.5,0.6073]
[1756941874120,1.77775944,4464.6,4464.5,0.8005]
[1756941874322,1.77781356,4464.6,4464.5,0.8005]
[1756941875629,1.77781356,4464.6,4464.5,0.6073]
[1756941875830,1.77781356,4464.6,4464.5,0.4134]
[1756941876030,1.77781356,4464.6,4464.5,0.6073]
[1756941876633,1.77781356,4464.6,4464.5,0.4134]
[1756941876832,2.98573447,4464.6,4464.5,0.4134]
[1756941877831,1.77781356,4464.6,4464.5,0.8005]
[1756941883040,1.77781356,4464.6,4464.5,0.6073]
[1756941885332,1.77781356,4464.6,4464.5,0.4134]
[1756941885532,2.98573447,4464.6,4464.5,0.4134]
[1756941885734,1.77781356,4464.6,4464.5,0.4134]
[1756941890038,1.77781356,4464.6,4464.5,0.2915]
[1756941890241,2.98573447,4464.6,4464.5,0.2915]
[1756941890636,2.98573447,4464.6,4464.5,0.4144]
[1756941890845,2.98573447,4464.6,4464.5,0.6111]
[1756941892147,2.0099531,4464.6,4464.5,0.8]
[1756941892444,0.57603219,4464.6,4464.5,0.8]
[1756941892648,0.80203219,4464.6,4464.5,0.8]
[1756941898749,0.57603219,4464.6,4464.5,0.8]
[1756941898947,0.80203219,4464.6,4464.5,0.8]
[1756941900249,1.61499188,4464.6,4464.5,0.8]
[1756941900650,1.61499188,4464.6,4464.5,0.6111]
[1756941900950,1.61499188,4464.6,4464.5,0.8]
[1756941902443,1.61499188,4464.6,4464.5,0.6111]
[1756941903242,1.61499188,4464.6,4464.5,0.8]
[1756941903440,0.57603219,4464.6,4464.5,5.02399]
[1756941904746,0.57603219,4464.6,4464.5,4.8]
[1756941905551,1.38899188,4464.6,4464.5,0.8]
[1756941908956,0.57603219,4464.6,4464.5,0.8]
[1756941934463,0.57603219,4464.6,4464.5,1.026]
[1756941941482,0.57603219,4464.6,4464.5,0.8]
[1756941941682,0.57603219,4464.6,4464.5,1.026]
[1756941955492,0.57603219,4464.6,4464.5,2.00125661]
[1756941956891,0.57603219,4464.6,4464.5,1.026]
[1756941957195,0.57603219,4464.6,4464.5,0.8371]
[1756941958902,0.57603219,4464.6,4464.5,1.0253]
[1756941966806,0.57603219,4464.6,4464.5,0.7993]
[1756941967010,0.57603219,4464.6,4464.5,1.0253]
[1756941978917,0.57603219,4464.6,4464.5,2.00055661]
[1756941980907,0.57603219,4464.6,4464.5,1.0253]
[1756941996128,0.57603219,4464.6,4464.5,0.8371]
[1756942001333,0.57603219,4464.6,4464.5,1.0415]
[1756942008439,0.57603219,4464.6,4464.5,2.804]
[1756942011840,1.20792091,4465.4,4464.5,2.804]
[1756942012037,0.3813,4465.2,4465.1,3.2078]
[1756942012242,0.3813,4465.2,4465.1,3.6121]
[1756942012634,0.6636,4465.2,4465.1,3.9237]
[1756942012941,0.3813,4465.2,4465.1,3.9237]
[1756942013642,0.6636,4465.2,4465.1,3.5194]
[1756942014049,0.6636,4465.2,4465.1,0.3116]
[1756942017450,1.47653902,4465.2,4465.1,0.3116]
[1756942018946,1.47653902,4465.2,4464.9,0.3116]
[1756942019265,1.47653902,4465.0,4464.9,0.5189]
[1756942020552,1.47653902,4465.0,4464.9,0.7159]
[1756942023861,2.04875467,4465.0,4464.9,0.7159]
[1756942025457,1.76645467,4465.0,4464.9,0.7159]
[1756942029464,2.04875467,4465.0,4464.9,0.7159]
[1756942029660,1.76645467,4465.0,4464.9,0.7159]
[1756942030560,2.04875467,4465.0,4464.9,0.7159]
[1756942037866,1.76645467,4465.0,4464.9,0.7159]
[1756942040174,2.06835467,4465.0,4464.9,0.7159]
[1756942042673,1.76645467,4465.0,4464.9,0.7159]
[1756942042868,0.76521565,4465.0,4464.9,0.7159]
[1756942044382,1.57815467,4465.0,4464.9,0.7159]
[1756942044571,2.07965467,4465.0,4464.9,0.7159]
[1756942049780,2.07965467,4465.0,4464.9,0.5189]
[1756942055485,2.07965467,4465.0,4464.9,0.7263]
[1756942057287,1.77775467,4465.0,4464.9,0.7263]
[1756942058784,2.07965467,4465.0,4464.9,0.7263]
[1756942063486,0.96481565,4465.0,4464.9,0.7263]
[1756942063690,0.57221565,4465.0,4464.9,0.7263]
[1756942063988,0.6936,4465.9,4465.8,0.5045]
[1756942064183,0.6936,4465.9,4465.8,3.9074]
[1756942067594,0.4,4465.9,4465.8,3.9074]
[1756942068992,0.6936,4465.9,4465.8,3.2078]
[1756942069293,0.6936,4465.9,4465.5,0.3403]
[1756942069481,0.4,4465.4,4465.3,3.408]
[1756942069786,0.4,4465.4,4465.3,3.9383]
[1756942069992,0.6936,4465.4,4465.3,3.9383]
[1756942070789,0.6936,4465.4,4465.3,4.1334]
[1756942071895,0.4,4465.4,4465.3,4.1334]
[1756942075194,0.2077,4465.4,4465.3,4.1334]
[1756942075387,0.81293902,4465.7,4465.3,3.8291]
[1756942075587,1.29883902,4465.7,4465.6,0.2002]
[1756942075783,1.50653902,4465.7,4465.6,0.5045]
[1756942079496,0.6936,4465.7,4465.6,0.5045]
[1756942082897,0.6936,4465.7,4465.6,0.6996]
[1756942083494,0.4,4465.7,4465.6,0.6996]
[1756942084587,0.2077,4465.7,4465.6,0.6996]
[1756942084790,0.4327,4466.0,4465.9,0.3953]
[1756942084991,0.7759239,4466.0,4465.9,0.6996]
[1756942085995,1.31222091,4467.0,4465.9,0.6996]
[1756942086197,0.2077,4466.5,4466.4,0.6996]
[1756942086693,0.56831487,4466.7,4466.4,0.3953]
[1756942086900,3.2078,4467.1,4466.5,0.8139]
[1756942086901,0.56831487,4466.6,4466.5,0.8139]
[1756942087094,0.5013,4467.0,4466.9,0.2002]
[1756942087296,1.26193419,4467.0,4466.9,0.6996]
[1756942089987,0.96833419,4467.0,4466.9,0.6996]
[1756942090892,1.26193419,4467.0,4466.9,0.6996]
[1756942093697,1.58963419,4467.0,4466.3,8.2077]
[1756942093997,0.6819,4466.4,4466.3,8.2077]
[1756942094302,1.25023419,4466.4,4466.3,8.7168]
[1756942094802,1.25023419,4466.4,4466.3,8.9248]
[1756942095101,1.25023419,4466.4,4466.3,3.9249]
[1756942095290,1.25023419,4466.4,4466.3,3.5185]
[1756942095498,1.25023419,4466.4,4466.3,3.2078]
[1756942095889,1.25023419,4466.4,4466.3,3.5185]
[1756942096294,1.25023419,4466.4,4466.3,3.7169]
[1756942098210,1.47523419,4466.4,4466.3,3.7169]
[1756942099596,1.47523419,4466.4,4466.0,0.3107]
[1756942099799,1.37472424,4466.1,4465.9,4.9999]
[1756942100001,1.47523419,4466.0,4465.9,4.9999]
[1756942100399,1.47523419,4466.0,4465.9,5.3106]
[1756942100595,1.47523419,4466.0,4465.9,0.3107]
[1756942102608,1.19293419,4466.0,4465.8,3.2078]
[1756942102911,1.25023419,4465.9,4465.8,3.2078]
[1756942103097,1.25023419,4465.9,4465.8,3.5185]
[1756942105315,1.25023419,4465.9,4465.5,0.3107]
[1756942105610,0.6819,4465.4,4465.3,3.5185]
[1756942105805,1.47523419,4465.4,4465.3,3.5185]
[1756942108915,1.47523419,4465.4,4465.3,3.7169]
[1756942110211,1.47523419,4465.4,4465.3,0.5091]
[1756942111113,0.3996,4464.8,4464.7,0.3107]
[1756942111408,1.47523419,4464.8,4464.7,0.3107]
[1756942111614,0.6819,4464.7,4464.6,3.5185]
[1756942111803,2.22535843,4464.7,4464.6,3.5185]
[1756942112001,2.22535843,4464.7,4464.6,3.7169]
[1756942112405,2.22535843,4464.7,4464.6,0.5091]
[1756942114213,2.22535843,4464.7,4464.6,0.7171]
[1756942114409,1.54345843,4464.7,4464.6,0.7171]
[1756942114611,0.56833419,4464.7,4464.6,0.7171]
[1756942114817,0.225,4464.7,4464.6,0.7171]
[1756942115306,0.4264,4464.7,4464.6,0.7171]
[1756942115511,0.6246,4464.7,4464.6,0.7171]
[1756942115712,0.9069,4464.7,4464.6,0.7171]
[1756942116711,0.9069,4464.7,4464.1,3.2078]
[1756942116914,0.3996,4463.8,4463.7,5.717]
[1756942117214,0.225,4463.8,4463.7,5.717]
[1756942117511,1.47380489,4463.8,4463.7,0.7171]
[1756942119509,0.9069,4463.8,4463.7,0.7171]
[1756942119814,0.6246,4463.8,4463.7,0.7171]
[1756942121405,0.9069,4463.8,4463.7,0.7171]
[1756942122010,0.225,4463.8,4463.7,0.7171]
[1756942128419,0.79062231,4463.8,4463.7,0.7171]
[1756942129618,0.98912231,4463.8,4463.7,0.7171]
[1756942133323,1.48082231,4463.8,4463.7,0.3107]
[1756942137426,0.3986,4463.3,4463.2,0.6701]
[1756942137625,2.16434655,4463.3,4463.2,0.6701]
[1756942141028,1.76574655,4463.3,4463.2,0.6701]
[1756942141334,1.96424655,4463.3,4463.2,0.6701]
[1756942141633,1.80268237,4463.3,4463.2,0.6701]
[1756942142633,2.29438237,4463.3,4463.2,0.6701]
[1756942144722,2.00278237,4463.3,4463.2,0.6701]
[1756942144931,1.80268237,4463.3,4463.2,0.6701]
[1756942145332,1.80561282,4463.3,4463.2,0.6701]
[1756942146128,1.60711282,4463.3,4463.2,0.6701]
[1756942148028,1.80561282,4463.3,4463.2,0.6701]
[1756942152742,2.30231282,4463.3,4463.2,0.6701]
[1756942153035,2.30231282,4463.3,4463.2,0.2824]
[1756942153337,1.80561282,4463.3,4463.2,0.6685]
[1756942155545,1.58061282,4463.3,4463.2,0.6685]
[1756942155735,2.29781282,4463.3,4463.2,0.6685]
[1756942161738,2.29781282,4463.3,4463.2,0.4791]
[1756942166550,2.07281282,4463.3,4463.2,0.4791]
[1756942166752,2.07281282,4463.3,4463.2,0.6685]
[1756942167051,1.60711282,4463.3,4463.2,0.6685]
[1756942167251,1.81331282,4463.3,4463.2,0.6685]
[1756942168348,2.00891282,4463.3,4463.2,0.6685]
[1756942169054,2.30551282,4463.3,4463.2,0.6685]
[1756942170557,2.00891282,4463.3,4463.2,0.6685]
[1756942171559,0.56855276,4463.3,4463.2,4.89255]
[1756942172151,0.81356006,4464.5,4464.4,0.3861]
[1756942172359,0.225,4464.6,4464.5,0.8048]
[1756942172555,0.81356006,4464.7,4464.6,0.6904]
[1756942172858,0.81356006,4464.7,4464.6,3.8982]
[1756942173063,1.01976006,4464.7,4464.6,3.8982]
[1756942174360,1.21536006,4464.7,4464.6,3.8982]
[1756942176159,1.51196006,4464.7,4464.6,3.8982]
[1756942178164,1.21536006,4464.7,4464.6,3.8982]
[1756942181763,1.51196006,4464.7,4464.1,3.2078]
[1756942181969,1.22176006,4464.2,4464.1,0.1932]
[1756942182161,1.51846006,4464.2,4464.1,0.4888]
[1756942182870,0.81356006,4464.2,4464.1,0.6836]
[1756942183969,1.01726006,4464.2,4464.1,0.6836]
[1756942184564,0.81356006,4464.2,4464.1,0.6836]
[1756942186271,1.01726006,4464.2,4464.1,0.6836]
[1756942189670,0.2967,4464.6,4464.1,0.388]
[1756942189671,0.81356006,4464.4,4464.1,0.388]
[1756942189876,1.01726006,4464.4,4464.3,0.388]
[1756942190064,1.01726006,4464.4,4464.3,0.6836]
[1756942190470,0.225,4464.8,4464.0,3.3222]
[1756942190471,0.4082,4464.9,4464.8,0.6836]
[1756942190770,1.22176006,4464.9,4464.8,0.6836]
[1756942190969,2.08296834,4464.9,4464.8,0.6836]
[1756942191472,1.58176834,4464.9,4464.8,0.6836]
[1756942193366,0.56450828,4464.9,4464.8,1.49716006]
[1756942193568,0.5004,4465.5,4465.4,0.388]
[1756942193867,1.26963158,4465.5,4465.4,0.6836]
[1756942194573,0.97293158,4465.5,4465.4,0.6836]
[1756942195673,1.26963158,4465.5,4465.4,0.6836]
[1756942196275,1.26963158,4465.5,4465.4,0.4888]
[1756942197673,0.56473158,4465.5,4465.4,0.6836]
[1756942198669,1.01726006,4465.9,4465.8,0.388]
[1756942198881,1.58229954,4465.9,4465.8,0.6836]
[1756942199566,1.78679954,4465.9,4465.8,0.6836]
[1756942199967,2.08349954,4465.9,4465.8,0.6836]
[1756942200267,0.76873948,4465.9,4465.8,0.6836]
[1756942200469,0.81356006,4466.5,4465.8,1.20156006]
[1756942200669,1.74346006,4466.5,4466.4,0.4888]
[1756942200869,2.30880185,4466.5,4466.4,0.4888]
[1756942201272,2.30880185,4466.5,4466.4,0.6836]
[1756942201472,1.49524179,4466.5,4466.4,0.6836]
[1756942205377,1.49524179,4466.5,4466.4,0.2956]
[1756942206381,1.60044179,4466.5,4466.0,0.1189]
[1756942206574,0.4082,4466.2,4466.1,0.2956]
[1756942206767,0.7049,4466.2,4466.1,0.4888]
[1756942207172,0.4082,4465.9,4465.8,0.2956]
[1756942207366,0.7049,4465.9,4465.8,0.4888]
[1756942207565,0.7049,4465.9,4465.8,0.6836]
[1756942207778,0.4082,4465.9,4465.8,0.6836]
[1756942209276,0.7049,4465.9,4465.8,0.6836]
[1756942209575,0.7049,4465.9,4465.8,0.4888]
[1756942210774,0.2037,4465.9,4465.8,0.6836]
[1756942210977,0.225,4466.2,4466.0,0.1189]
[1756942210978,0.2037,4466.1,4466.0,0.1189]
[1756942211283,0.2037,4466.1,4466.0,0.5069]
[1756942211573,0.4082,4466.1,4466.0,0.8025]
[1756942212181,0.7092,4466.1,4466.0,0.8025]
[1756942213180,0.7092,4466.1,4466.0,0.4888]
[1756942218283,0.7092,4466.1,4466.0,0.6072]
[1756942218777,0.4082,4466.1,4466.0,0.8147]
[1756942218980,0.225,4466.2,4466.0,0.8147]
[1756942219386,0.7658152,4466.1,4466.0,0.8147]
[1756942219686,0.5624152,4466.1,4466.0,0.8147]
[1756942220084,0.2034,4466.4,4466.3,0.4129]
[1756942220283,0.225,4466.7,4466.5,0.1184]
[1756942220484,0.4284,4466.7,4466.6,0.7014]
[1756942220681,0.2034,4466.7,4466.6,0.7014]
[1756942220886,0.76607745,4466.7,4466.6,0.7014]
[1756942221079,0.56267745,4466.7,4466.6,0.7014]
[1756942222289,1.19981958,4467.1,4467.0,0.1184]
[1756942222487,1.96619141,4467.1,4467.0,0.5313]
[1756942222687,1.96619141,4467.1,4467.0,0.8198]
[1756942222888,2.46839141,4467.1,4467.0,0.8198]
[1756942223188,2.46839141,4467.1,4467.0,0.2885]
[1756942225488,2.46839141,4467.1,4466.5,0.1184]
[1756942225785,0.4046,4466.7,4466.6,0.7014]
[1756942225991,0.96757183,4466.7,4466.6,0.7014]
[1756942226591,0.96793003,4466.7,4466.6,0.7014]
[1756942226792,0.56333003,4466.7,4466.6,0.7014]
[1756942228283,0.76673003,4466.7,4466.6,0.7014]
[1756942228991,0.56333003,4466.7,4466.6,0.7014]
[1756942230989,1.19981958,4467.1,4466.6,0.7014]
[1756942231192,0.76669117,4467.0,4466.9,0.4129]
[1756942231392,0.76669117,4467.0,4466.9,0.7014]
[1756942231892,1.20792091,4467.8,4466.9,0.7014]
[1756942231893,0.7056,4468.0,4467.9,0.2054]
[1756942232190,1.4938715,4468.0,4467.9,0.4939]
[1756942232393,1.4938715,4468.0,4467.9,0.7014]
[1756942232793,1.1928715,4468.0,4467.9,0.7014]
[1756942233297,1.4938715,4468.0,4467.9,0.7014]
[1756942235595,1.49302078,4468.0,4467.9,0.7014]
[1756942237900,1.19202078,4468.0,4467.9,0.7014]
[1756942238792,0.96702078,4468.0,4467.9,0.7014]
[1756942239592,1.26802078,4468.0,4467.9,0.2885]
[1756942239796,0.96702078,4468.0,4467.9,0.7014]
[1756942239996,1.26802078,4468.0,4467.9,0.7014]
[1756942240193,1.26802078,4468.0,4467.9,0.2885]
[1756942240401,0.4046,4467.3,4467.2,0.2885]
[1756942240600,1.68041958,4467.3,4467.2,0.4939]
[1756942241802,0.7056,4467.3,4467.2,0.4939]
[1756942241998,0.2835,4467.0,4466.8,0.2959]
[1756942242199,0.2835,4466.6,4466.5,4.9999]
[1756942242500,1.2484965,4466.6,4466.5,4.9999]
[1756942242704,2.22331608,4466.6,4466.5,4.9999]
[1756942242900,2.44831608,4466.6,4466.5,4.9999]
[1756942243298,6.44831608,4466.6,4466.5,4.9999]
[1756942244100,6.44831608,4466.6,4466.0,0.1207]
[1756942244296,1.17381958,4466.1,4466.0,0.8198]
[1756942244502,1.96101608,4466.1,4466.0,0.8198]
[1756942244991,2.16481608,4466.1,4466.0,0.8198]
[1756942245701,1.1899965,4466.1,4466.0,0.8198]
[1756942246001,2.16481608,4466.1,4466.0,0.8198]
[1756942246202,2.44831608,4466.1,4466.0,0.8198]
[1756942247697,1.96101608,4466.1,4466.0,0.8198]
[1756942251206,1.39881958,4466.1,4466.0,0.8198]
[1756942251706,1.39881958,4466.1,4466.0,0.4929]
[1756942251707,1.88611958,4466.1,4466.0,0.4929]
[1756942252408,1.88611958,4466.1,4466.0,0.2959]
[1756942254306,0.424,4466.1,4466.0,0.8198]
[1756942254507,1.39881958,4466.1,4466.0,0.8198]
[1756942255096,1.60261958,4466.1,4466.0,0.8198]
[1756942255501,1.19981958,4466.1,4466.0,0.8198]
[1756942256208,1.60261958,4466.1,4466.0,0.8198]
[1756942256506,1.88611958,4466.1,4466.0,0.2959]
[1756942256707,1.88611958,4466.1,4465.5,0.1184]
[1756942256907,1.19981958,4466.1,4465.9,0.197]
[1756942257107,0.6863,4466.0,4465.9,0.197]
[1756942257309,0.6863,4466.0,4465.9,0.4929]
[1756942257712,0.4028,4466.0,4465.9,0.6991]
[1756942263210,0.6863,4466.0,4465.9,0.6991]
[1756942263403,1.4989557,4466.0,4465.9,0.2959]
[1756942264013,6.41085668,4466.0,4465.3,8.2077]
[1756942264213,3.2078,4466.1,4465.3,8.5036]
[1756942264214,0.6863,4465.4,4465.3,8.5036]
[1756942264410,0.6863,4465.4,4465.3,8.7006]
[1756942264615,0.4028,4465.4,4465.3,8.9068]
[1756942265318,0.225,4465.5,4465.3,8.6109]
[1756942265517,0.225,4465.5,4465.4,0.6991]
[1756942265713,1.0376557,4465.5,4465.4,0.6991]
[1756942266112,1.2366557,4465.5,4465.4,0.6991]
[1756942267222,1.4404557,4465.5,4465.4,0.6991]
[1756942268615,1.7239557,4465.5,4465.4,0.6991]
[1756942269217,2.28636874,4465.5,4465.4,0.6991]
[1756942269514,1.79906874,4465.5,4465.4,0.6991]
[1756942269906,2.28636874,4465.5,4465.4,0.4929]
[1756942270114,2.28636874,4465.5,4465.4,0.2959]
[1756942272032,0.7081,4465.4,4465.3,2.83730626]
[1756942272326,5.49445304,4465.4,4465.3,2.52420626]
[1756942272630,6.70237395,4465.4,4465.3,2.52420626]
[1756942272819,6.70237395,4465.4,4464.6,0.2949]
[1756942273015,0.8126557,4464.8,4464.7,0.2028]
[1756942273215,1.60006874,4464.8,4464.7,0.4977]
[1756942277030,1.60006874,4464.8,4464.7,0.2949]
[1756942277825,1.60006874,4464.8,4464.7,0.4977]
[1756942279328,1.37506874,4464.8,4464.7,0.6955]
[1756942279529,3.2078,4465.6,4465.1,0.4006]
[1756942279730,0.56197091,4465.5,4465.4,0.6955]
[1756942279936,0.78697091,4465.5,4465.4,0.6955]
[1756942280329,0.225,4465.5,4465.4,0.6955]
[1756942282437,0.8126557,4465.6,4465.5,0.519]
[1756942282637,0.8126557,4465.6,4465.5,0.8139]
[1756942286239,1.37500129,4465.6,4465.5,0.8139]
[1756942294142,0.56234559,4465.6,4465.5,0.8139]
[1756942294350,0.225,4465.8,4465.5,0.519]
[1756942294552,0.56270936,4465.7,4465.6,0.6955]
[1756942300040,0.56270936,4465.7,4465.6,0.4977]
[1756942300245,0.56270936,4465.7,4465.6,0.2949]
[1756942300651,0.56270936,4465.7,4465.6,0.4977]
[1756942301249,0.56270936,4465.7,4465.6,0.6955]
[1756942302146,0.8126557,4466.2,4466.0,0.1129]
[1756942302352,0.8126557,4466.2,4466.1,0.6665]
[1756942302552,1.37552989,4466.2,4466.1,0.6665]
[1756942303454,1.37552989,4466.2,4466.1,0.2852]
[1756942304757,5.37552989,4466.2,4465.6,0.2852]
[1756942305054,0.8126557,4465.7,4465.6,0.2852]
[1756942305249,1.60052989,4465.7,4465.6,0.2852]
[1756942306149,1.60052989,4465.7,4465.6,0.4731]
[1756942306551,1.60052989,4465.7,4465.6,0.2852]
[1756942307251,1.60052989,4465.7,4465.5,0.4036]
[1756942307453,0.56287419,4465.6,4465.5,0.4036]
[1756942307749,1.37552989,4465.6,4464.9,8.2077]
[1756942308056,0.8126557,4465.0,4464.9,4.9999]
[1756942308256,1.79137595,4465.0,4464.9,5.2851]
[1756942309450,1.79137595,4465.0,4464.9,0.4731]
[1756942309860,1.79137595,4465.0,4464.9,0.2852]
[1756942310458,1.79137595,4465.0,4464.6,0.2852]
[1756942310657,0.8126557,4464.7,4464.6,0.2852]
[1756942310856,1.56637595,4464.7,4464.6,0.2852]
[1756942311056,1.56637595,4464.7,4464.6,0.4731]
[1756942313556,1.56637595,4464.7,4464.6,0.2852]
[1756942314964,1.56637595,4464.7,4464.6,0.4731]
[1756942315260,1.56637595,4464.7,4464.6,0.6665]
[1756942315458,1.56637595,4464.7,4464.6,0.2852]
[1756942316564,1.55541308,4464.7,4464.6,0.2852]
[1756942318367,1.55541308,4464.7,4464.6,0.6665]
[1756942320162,1.55541308,4464.7,4464.6,0.4731]
[1756942320766,1.55541308,4464.7,4464.6,0.6665]
[1756942321571,1.55541308,4464.7,4464.6,0.2852]
[1756942321965,1.55493194,4464.7,4464.0,5.1128]
[1756942322269,0.8126557,4464.1,4464.0,5.398]
[1756942322457,1.21753889,4464.1,4464.0,5.398]
[1756942323157,1.21753889,4464.1,4464.0,0.3981]
[1756942323368,1.77983637,4464.1,4464.0,0.3981]
[1756942323568,1.94316306,4464.1,4464.0,0.3981]
[1756942323771,1.94316573,4464.1,4464.0,0.3981]
[1756942325967,1.94295411,4464.1,4464.0,0.3981]
[1756942326672,1.94295411,4464.1,4464.0,0.7794]
[1756942327768,0.96697172,4464.1,4464.0,0.7794]
[1756942330169,0.96697172,4464.1,4464.0,0.4942]
[1756942330472,0.96697172,4464.1,4464.0,0.7794]
[1756942331475,0.74197172,4464.1,4464.0,0.7794]
[1756942333973,0.74197172,4464.1,4464.0,0.586]
[1756942334172,0.74197172,4464.1,4464.0,0.3981]
[1756942334477,0.74197172,4464.1,4463.3,4.9999]
[1756942334671,0.97598239,4463.6,4463.5,0.4022]
[1756942334881,1.71795411,4463.6,4463.5,0.5974]
[1756942335174,1.71795411,4463.6,4463.5,0.7968]
[1756942336577,1.71795411,4463.6,4463.5,0.4022]
[1756942336973,1.71795411,4463.6,4463.5,0.5974]
[1756942337769,1.71795411,4463.6,4463.3,4.9999]
[1756942337974,1.71795411,4463.6,4462.7,0.2893]
[1756942337975,0.74197172,4463.5,4462.7,0.2893]
[1756942338177,0.97598239,4462.8,4462.7,0.2893]
[1756942338474,1.94295411,4462.8,4462.7,0.2893]
[1756942338679,1.94295411,4462.8,4462.7,5.2892]
[1756942339387,1.94295411,4462.8,4462.7,0.2893]
[1756942340580,1.94295411,4462.8,4462.7,0.4845]
[1756942340981,1.94295411,4462.8,4462.7,0.2893]
[1756942342571,1.94295411,4462.8,4462.1,3.2078]
[1756942342781,0.97598239,4462.2,4462.1,0.1952]
[1756942342978,1.71795411,4462.2,4462.1,0.3946]
[1756942343483,1.15565396,4462.2,4462.1,0.6839]
[1756942348390,1.15565396,4462.2,4461.1,0.225]
[1756942348391,13.95843635,4462.2,4460.3,3.2078]
[1756942348683,1.20792091,4461.0,4460.3,0.3946]
[1756942348887,0.96868885,4460.9,4460.6,0.2893]
[1756942349186,0.74068885,4460.8,4460.7,0.4845]
[1756942349589,0.96868885,4460.8,4460.7,0.6839]
[1756942350089,1.976898,4460.8,4460.7,0.6839]
[1756942352291,1.976898,4460.8,4460.7,0.4845]
[1756942352795,1.976898,4460.8,4460.7,0.6839]
[1756942358991,1.748898,4460.8,4460.7,0.6839]
[1756942359196,1.98412461,4460.8,4460.7,0.6839]
[1756942359497,1.75512461,4460.8,4460.7,0.6839]
[1756942359692,1.00814222,4460.8,4460.7,0.6839]
[1756942359892,0.44089833,4460.8,4460.7,0.6839]
[1756942360089,1.41688072,4460.8,4460.7,0.6839]
[1756942362697,1.18788072,4460.8,4460.7,0.6839]
[1756942364287,1.75601319,4460.8,4460.7,0.6839]
[1756942365299,1.75627287,4460.8,4460.7,0.6839]
[1756942367887,1.75627287,4460.8,4460.7,0.2893]
[1756942370102,1.75627287,4460.8,4460.7,0.4834]
[1756942371001,1.75153212,4460.8,4460.7,0.4834]
[1756942371199,1.75153212,4460.8,4460.7,0.2893]
[1756942371795,1.75153212,4460.8,4460.5,0.1134]
[1756942371796,1.75153212,4460.8,4460.6,0.3003]
[1756942372099,0.77554973,4460.7,4460.6,0.3003]
[1756942374400,0.77554973,4460.7,4460.5,0.1134]
[1756942374600,1.00890121,4460.6,4460.5,0.3075]
[1756942374799,1.00890121,4460.6,4460.5,0.1134]
[1756942374998,1.00890121,4460.6,4460.5,0.3075]
[1756942375197,1.00890121,4460.6,4460.5,0.6078]
[1756942375399,1.9848836,4460.6,4460.5,0.8088]
[1756942376406,0.78090121,4460.6,4460.5,0.8088]
[1756942377909,0.76638892,4460.6,4460.5,0.8088]
[1756942380713,0.76783099,4460.6,4460.5,0.8088]
[1756942381010,0.75727581,4460.6,4460.5,0.8088]
[1756942386411,0.57489805,4460.6,4460.5,0.8088]
[1756942388416,1.38930887,4460.6,4460.5,0.8088]
[1756942391327,0.57489805,4460.6,4460.5,0.8088]
[1756942394921,0.57489805,4460.6,4460.5,1.0368]
[1756942401529,1.38930887,4460.6,4460.5,1.0368]
[1756942402329,1.38930887,4460.6,4460.5,0.8088]
[1756942403827,0.57489805,4460.6,4460.5,0.8088]
[1756942404027,1.38930887,4460.6,4460.5,0.8088]
[1756942408918,0.57489805,4460.6,4460.5,0.8088]
[1756942419432,0.1968,4461.5,4461.4,0.7117]
[1756942419632,0.1968,4461.5,4461.4,3.9195]
[1756942423336,1.01121082,4461.5,4461.4,3.9195]
[1756942423745,1.21351082,4461.5,4461.4,3.9195]
[1756942424542,1.21351082,4461.5,4461.4,4.1465]
[1756942426043,0.81441082,4461.5,4461.4,4.1465]
[1756942426444,0.81441082,4461.5,4461.4,3.9259]
[1756942429851,1.01191082,4461.5,4461.4,3.9259]